Cogmind - Beta 15 @@@ ROGUE MODE // 2025.10.06 @ 21:36:49 Player: WOAH_a BUG Result: Destroyed by as-94033 with Assembled Blade Performance ------------- Evolutions (1) 500 Regions Visited (3) 600 Robots Destroyed (47) 235 Value Destroyed (1174) 1174 Prototype IDs (4) 80 Alien Tech Used (0) 0 Bonus (0) 0 TOTAL SCORE: 2589 Bonus ------- None Cogmind --------- Core Integrity 0/400 Matter 131/300 Energy 95/100 System Corruption 0% Temperature Cool (0) Movement Core (700) Ox13 Location -9/Mines Parts ------- > --- POWER (1) -------- (None) > --- PROPULSION (3) --- (None) > --- UTILITY (2) ------ High-capacity Storage Unit Advanced Targeting Computer > --- WEAPON (3) ------- (None) > --- INVENTORY (20) --- Large Battery (200) Structural Scanner Shield Generator Field Recycling Unit (0) Improved Datajack Plasma Cutter Explosive Trap Explosive Trap Peak State ------------ > --- POWER ------------ Light Nuclear Core > --- PROPULSION ------- Improved Treads Improved Treads Improved Treads > --- UTILITY ---------- Large Battery Advanced Targeting Computer > --- WEAPON ----------- Medium Laser Flak Cannon Improved Datajack > --- INVENTORY -------- Small Storage Unit Beam Cannon Plasma Cutter [Rating: 20] Favorites ----------- Power Cooled Ion Engine Engine Cooled Ion Engine Power Core Light Nuclear Core Propulsion Improved Treads Treads Improved Treads Leg Aluminum Leg Wheel Wheel Flight Unit Flight Unit Utility Advanced Targeting Computer Storage Large Battery Processor Advanced Targeting Computer Weapon Improved Light Cannon Energy Gun Medium Laser Energy Cannon Beam Cannon Ballistic Cannon Improved Light Cannon Launcher Mini Grenade Launcher Special Weapon Plasma Cutter Special Melee Weapon Improved Datajack Build | -11 -10 -9 -9 ------- Run | Yrd Mat Mat Min Slots Evolved 2 | . . 2 . Power . | . . . . Propulsion 1 | . . 1 . Utility . | . . . . Weapon 1 | . . 1 . Parts Attached 34 | 8 5 16 5 Power 3 | 1 1 1 . Engine 2 | 1 . 1 . Core 1 | . 1 . . Reactor . | . . . . Propulsion 13 | 4 1 4 4 Treads 3 | . . 3 . Leg 4 | 2 1 1 . Wheel 4 | 2 . . 2 Hover . | . . . . Flight 2 | . . . 2 Utility 5 | 1 1 3 . Device . | . . . . Storage 3 | 1 1 1 . Processor 2 | . . 2 . Hackware . | . . . . Protection . | . . . . Artifact . | . . . . Weapon 13 | 2 2 8 1 Energy Gun 5 | 2 1 2 . Energy Cannon 1 | . 1 . . Ballistic Gun . | . . . . Ballistic Cannon 4 | . . 4 . Launcher 1 | . . . 1 Special Weapon 1 | . . 1 . Impact Weapon . | . . . . Slashing Weapon . | . . . . Piercing Weapon . | . . . . Special Melee Weapon 1 | . . 1 . Unidentified Prototypes 2 | . . 2 . Parts Lost 10 | . . 1 9 Power 1 | . . . 1 Propulsion 4 | . . . 4 Utility . | . . . . Weapon 5 | . . 1 4 Highest Loss Streak 6 | . . 1 6 To Critical Strikes . | . . . . Average Backups 3 | 1 1 3 6 Power . | . . . . Propulsion . | . . . . Utility 1 | . . 1 3 Weapon . | . 1 . 1 Tool/Special . | . . . . Unused Backups 2 | . . . 2 Power . | . . . . Propulsion . | . . . . Utility 2 | . . . 2 Weapon . | . . . . Tool/Special . | . . . . Average Slot Usage (%) 93 | . 86 98 87 Engine 6 | . 4 5 11 Core 5 | . 10 5 . Treads 16 | . . 27 6 Leg 8 | . 28 4 . Wheel 2 | . . . 10 Flight 1 | . . . 5 Storage 12 | . 15 11 11 Processor 8 | . . 10 11 Energy Gun 8 | . 16 8 . Energy Cannon 5 | . 11 5 . Ballistic Cannon 17 | . . 16 32 Peak Build Rating 20 | 6 9 20 20 Average Rating 14 | 4 7 17 16 On Entrance 8 | . 6 9 20 Naked Turns . | . . . . Heaviest Build 60 | 11 17 60 60 Greatest Support 69 | 32 20 69 69 Greatest Overweight (x) 14 | . . . 14 Average Overweight (x) . | . . . 2 Largest Inventory Capacity 20 | 8 8 20 20 Average Capacity 9 | 7 8 5 20 Most Carried 11 | 4 3 6 11 Average Carried 3 | 1 1 3 7 Final Capacity 20 | 8 8 20 20 Final Carried 8 | 1 2 6 8 Class Distribution -------------------- 74% | Gunner 25% | Mutant Dominant Class ---------------- Mutant | -10/Materials Gunner | -9/Materials Gunner | -9/Mines Resources | -11 -10 -9 -9 ----------- Run | Yrd Mat Mat Min Matter Collected 1153 | 169 113 592 279 Remotely . | . . . . Salvage Created 1324 | . 133 981 210 Parts 84 | . 9 59 16 Haulers Intercepted 4 | . . 4 . Recyclers Shooed 2 | . . 1 1 Parts Field Recycled . | . . . . Retrieved Matter . | . . . . Parts Self-Destructed . | . . . . Prevented . | . . . . Kills | -11 -10 -9 -9 ------- Run | Yrd Mat Mat Min Combat Hostiles Destroyed 46 | . 2 25 19 Guns 6 | . . 6 . Cannons 38 | . 2 19 17 AOE 2 | . . . 2 Classes Destroyed 11 | . 3 5 3 Worker 1 | . . . 1 Builder 2 | . . 1 1 Hauler 4 | . . 4 . Operator 2 | . 1 1 . Watcher 4 | . 1 3 . Swarmer 11 | . . 7 4 Grunt 13 | . 2 9 2 Brawler 2 | . . 2 . Duelist 1 | . . . 1 Sentry 7 | . . 7 . Assembled 12 | . . . 12 Best Kill Streak 12 | . 2 6 12 Combat Bots Only 12 | . 2 5 12 Max Kills in Single Turn 2 | . 1 2 2 Gunslinging . | . . . . Exploded 2 | . . . 2 Melee . | . . . . Uniques/NPCs Destroyed . | . . . . Combat | -11 -10 -9 -9 -------- Run | Yrd Mat Mat Min Hostile Shots Fired 194 | . 17 81 96 Missed 47 | . 1 27 19 Hits 147 | . 16 54 77 Melee 13 | . . . 13 Projectile 134 | . 16 54 64 Critical Strikes 4 | . 1 2 1 Damage Taken 2020 | . 199 663 1158 Core 458 | . 43 43 372 Absorbed by Shields . | . . . . Core Remaining (%) 91 | 100 82 . . Volleys Fired 113 | . 11 65 37 Largest 3 | . 2 3 3 Hottest 155 | . 110 155 99 Shots Fired 296 | . 21 175 100 Gun 70 | . 12 58 . Cannon 219 | . 9 112 98 Launcher 2 | . . . 2 Special 5 | . . 5 . Kinetic 171 | . . 73 98 Thermal 118 | . 21 97 . Explosive 2 | . . . 2 Electromagnetic 5 | . . 5 . Robot Hit Streak 16 | . 8 16 7 Robot Miss Streak 9 | . 2 8 9 Penetration Max . | . . . . Secondary Targets . | . . . . Shots Hit Robots 171 | . 16 115 40 Core Hits 104 | . 8 69 27 Critical Kills . | . . . . Critical Parts Destroyed . | . . . . Critical Strikes 14 | . 1 8 5 Burn 8 | . 1 7 . Blast 5 | . . . 5 Sever 1 | . . 1 . Melee Attacks 1 | . . 1 . Impact . | . . . . Slashing . | . . . . Piercing . | . . . . Sneak Attacks . | . . . . Combat Hostiles . | . . . . Follow-up Attacks . | . . . . Damage Inflicted 3242 | . 234 2006 1002 Guns 656 | . 110 546 . Cannons 2348 | . 121 1392 835 Explosions 203 | . . 36 167 Melee . | . . . . Ramming 3 | . 3 . . Kinetic 1821 | . . 986 835 Thermal 1176 | . 231 945 . Explosive 167 | . . . 167 Electromagnetic 75 | . . 75 . Impact . | . . . . Slashing . | . . . . Piercing . | . . . . Highest Corruption . | . . . . Average Corruption . | . . . . Corruption Purged . | . . . . Corruption Blocked . | . . . . Overload Shots . | . . . . Overflow Damage 57 | . . 14 43 Projectiles 43 | . . 14 29 Explosions 14 | . . . 14 Melee . | . . . . Knockbacks 15 | . . 5 10 Impact . | . . . . Kinetic 14 | . . 5 9 Secondary 1 | . . . 1 Self-Inflicted Damage 57 | . . . 57 Shots 1 | . . . 1 Rammed . | . . . . Targets Rammed 1 | . 1 . . Kicked 1 | . 1 . . Crushed . | . . . . Highest Temperature 384 | . 298 384 203 Average Temperature 102 | . 94 113 69 Received Heat Transfer 399 | . 129 258 12 Effects 6 | . . 6 . Energy Bleed 3 | . . 3 . Interference 3 | . . 3 . Siege Activations . | . . . . Martial Activations . | . . . . Shielding Activations . | . . . . Robots Disrupted . | . . . . Combat Hostiles . | . . . . Robots Corrupted . | . . . . Combat Hostiles . | . . . . Parts Fried . | . . . . Impact Corruptions . | . . . . Robots Melted . | . . . . Combat Hostiles . | . . . . Parts Melted 4 | . 1 3 . Heat Transferred 3604 | . 642 2962 . Parts Sabotaged . | . . . . Parts Stolen . | . . . . Parts Stripped . | . . . . Power Chain Reactions 1 | . . 1 . Alert | -11 -10 -9 -9 ------- Run | Yrd Mat Mat Min Maximum Alert Level 1 | . . 1 1 Low Security (%) 86 | 100 100 81 83 Level 1 13 | . . 18 16 Level 2 . | . . . . Level 3 . | . . . . Level 4 . | . . . . Level 5 . | . . . . High Security . | . . . . Max Security . | . . . . Peak Influence 254 | . 50 254 215 Initial 72 | . . . 72 Average 120 | . 5 157 152 Influence Increases 1184 | . 68 799 317 Destroy 0b10 Robot/C 680 | . 40 500 140 Destroy 0b10 Robot/NC 65 | . 10 45 10 Destroy Leader 176 | . 12 144 20 Successful Hack 43 | . 5 38 . Disable Machine 90 | . . 60 30 Destroy Structure 40 | . 1 12 27 Lose Combat Pursuer 90 | . . . 90 Influence Decreases 1147 | . 68 612 467 Entered New Map 115 | . . . 115 Time Decay 782 | . 68 452 262 Lost Part 100 | . . 10 90 Purge Threat 150 | . . 150 . Squads Dispatched 5 | . 3 2 . Investigation 1 | . 1 . . Extermination . | . . . . Reinforcement 4 | . 2 2 . Assault . | . . . . Garrison . | . . . . Intercept . | . . . . Searches Triggered . | . . . . Construction Impeded . | . . . . Haulers Reinforced . | . . . . Active Scanning Responses . | . . . . Cargo Convoy Interrupts . | . . . . Stealth | -11 -10 -9 -9 --------- Run | Yrd Mat Mat Min Distress Signals 7 | . 2 4 1 Communications Jammed . | . . . . Distress Signals . | . . . . Times Spotted 75 | . 6 35 34 Peak Tracking Total 11 | . 2 5 11 Tactical Retreats 8 | . . . 8 Traps | -11 -10 -9 -9 ------- Run | Yrd Mat Mat Min Traps Triggered 2 | . 1 1 . Indirectly . | . . . . Trap Hack Attempts . | . . . . Triggered . | . . . . Disarmed . | . . . . Reprogrammed . | . . . . Reused 1 | . . . 1 Traps Extracted . | . . . . Installed 2 | . . . 2 Triggered . | . . . . Most Traps Carried 3 | . . . 3 Machines | -11 -10 -9 -9 ---------- Run | Yrd Mat Mat Min Machines Disabled 6 | . . 4 2 Max in Single Turn 1 | . . 1 1 Machines Repaired . | . . . . Machines Dismantled 1 | . . 1 . Machines Sabotaged . | . . . . Overloaded Fab Kills . | . . . . Hacking | -11 -10 -9 -9 --------- Run | Yrd Mat Mat Min Machines Accessed 9 | . 4 5 . Terminals 8 | . 3 5 . Fabricators . | . . . . Repair Stations . | . . . . Recycling Units 1 | . 1 . . Scanalyzers . | . . . . Garrison Access . | . . . . Total Hacks 23 | . 10 13 . Successful 15 | . 7 8 . Failed 8 | . 3 5 . Catastrophic 2 | . . 2 . Database Lockouts . | . . . . Manual . | . . . . Terminals 19 | . 6 13 . Fabricators . | . . . . Repair Stations . | . . . . Recycling Units 4 | . 4 . . Scanalyzers . | . . . . Garrison Access . | . . . . Terminal Hacks 11 | . 3 8 . Prototype ID Bank 1 | . 1 . . Emergency Access Points 1 | . . 1 . Alert Level 1 | . 1 . . Unreport Threat 1 | . . 1 . Locate Traps 4 | . 1 3 . Hauler Manifests 3 | . . 3 . Fabricator Hacks . | . . . . Repair Station Hacks . | . . . . Recycling Unit Hacks 4 | . 4 . . Recycle Component 1 | . 1 . . Process 1 | . 1 . . Retrieve Matter 2 | . 2 . . Scanalyzer . | . . . . Garrison Access Hacks . | . . . . Unauthorized Hacks . | . . . . Terminals . | . . . . Fabricators . | . . . . Repair Stations . | . . . . Recycling Units . | . . . . Scanalyzers . | . . . . Garrison Access . | . . . . Data Cores Recovered 1 | . . 1 . Used . | . . . . Hacking Detections 8 | . 3 5 . Full Trace Events 1 | . . 1 . Feedback Events . | . . . . Feedback Blocked . | . . . . Robot Schematics Acquired . | . . . . Robots Built . | . . . . Authchips . | . . . . Time . | . . . . Total Robot Build Rating . | . . . . Part Schematics Acquired . | . . . . Parts Built . | . . . . Authchips . | . . . . Time . | . . . . Total Part Build Rating . | . . . . Parts Repaired . | . . . . Time . | . . . . Parts Recycled 1 | . 1 . . Recycled Matter 188 | . 188 . . Retrieved Matter 188 | . 188 . . Retrieved Components . | . . . . Parts Scanalyzed . | . . . . Part Schematics Acquired . | . . . . Parts Damaged . | . . . . Bothacking | -11 -10 -9 -9 ------------ Run | Yrd Mat Mat Min Used RIF Installer . | . . . . Robots Hacked 1 | . . 1 . Non-combat . | . . . . Combat 1 | . . 1 . Robot Hacks Applied 1 | . . 1 . parse_system 1 | . . 1 . Relay Couplers Released . | . . . . Fabnet Peak Effective % . | . . . . Robots Rewired . | . . . . Allies Hacked . | . . . . Hacks Repelled . | . . . . Allies | -11 -10 -9 -9 -------- Run | Yrd Mat Mat Min Total Allies . | . . . . Largest Group . | . . . . Highest-Rated Group . | . . . . Highest-Rated Ally . | . . . . Total Orders . | . . . . Ally Attacks . | . . . . Total Damage . | . . . . Kills . | . . . . Allies Corrupted . | . . . . Allies Melted . | . . . . Intel | -11 -10 -9 -9 ------- Run | Yrd Mat Mat Min Active Infowar (turns) . | . . . . Robot Analysis Total . | . . . . Derelict Logs Recovered . | . . . . Drone Launches . | . . . . Drone Recoveries . | . . . . Exploration | -11 -10 -9 -9 ------------- Run | Yrd Mat Mat Min Turns Passed 2374 | 68 489 1240 577 Spaces Moved 1189 | 43 348 560 238 Core 8 | 8 . . . Treads 506 | . . 483 23 Legs 455 | 30 348 77 . Wheels 197 | 5 . . 192 Hover . | . . . . Flight 23 | . . . 23 Fastest Speed 50 | 50 120 120 110 Average Speed 146 | 104 120 154 173 Slowest Speed 1180 | 120 120 160 1180 Overloaded Moves . | . . . . Propulsion Burnouts . | . . . . Robots Hopped . | . . . . Potential Cave-ins . | . . . . Cave-ins Triggered . | . . . . Exploration Rate (%) 39 | 4 62 51 40 Regions Visited 3 Branch Regions 1 Pre-discovered Areas . | . . . . Known Exits Taken . | . . . . Unknown Exits Taken 3 | 1 1 1 . Scrap Searched 1 | . . . 1 Spaces Dug 11 | . . . 11 Terrain Destroyed 39 | . . 6 33 Melee . | . . . . Projectile 17 | . . . 17 AOE 22 | . . 6 16 Terrain Rammed . | . . . . Walls Destroyed . | . . . . Machines Disabled . | . . . . Actions | -11 -10 -9 -9 --------- Run | Yrd Mat Mat Min Total 1580 | 66 396 789 329 Wait 161 | 5 27 98 31 Move 1186 | 42 347 559 238 Hop . | . . . . Pick Up 46 | 9 4 23 10 Fast Attach . | . . . . Attach 31 | 6 1 19 5 Detach 2 | . . 2 . Swap 12 | 2 4 6 . Drop 22 | 2 1 13 6 Fire 113 | . 11 65 37 Melee 1 | . . 1 . Ram . | . . . . Kick 1 | . 1 . . Crush . | . . . . Escape Stasis . | . . . . Rewire . | . . . . Trap 2 | . . . 2 Miscellaneous 3 | . . 3 . Route ------- -11/Scrapyard -10/Materials (discovered 2 exits: *Mat x2) -9/Materials (discovered 2 exits: [*Min] / [*Sto]) -9/Mines History --------- Turn | Location | Event 16 | -11/Scrapyard | Discovered new exit (range 16) 69 | -11/Scrapyard | Entered Materials 195 | -10/Materials | Met 8R-AWN 271 | -10/Materials | Discovered new exit (range 16) 303 | -10/Materials | Build established: Mutant 413 | -10/Materials | Discovered new exit (range 8) 558 | -10/Materials | Entered another Materials area 558 | -9/Materials | Evolved 2 slots: Propulsion x1, Weapon x1 830 | -9/Materials | Discovered new exit (range 9) 866 | -9/Materials | Build established: Gunner 1253 | -9/Materials | Discovered new exit (range 15) 1798 | -9/Materials | Entered Mines 1816 | -9/Mines | Met a Derelict bent on vengeance 2168 | -9/Mines | Assembled infested the area 2223 | -9/Mines | Found a hidden stash of uninstalled traps 2365 | -9/Mines | Core integrity fell below 50% 2375 | -9/Mines | Core integrity fell below 20% 2375 | -9/Mines | Destroyed by as-94033 with Assembled Blade Last Messages --------------- Dropped Explosive Trap. Installed Explosive Trap. as-95261 triggered Explosive Trap. An explosion rips through the floor. as-95261 destroyed. K-01 Serf collects debris. as-99800 knocked back. as-99800 destroyed. as-03370 destroyed. Wheel destroyed. Imp. Light Cannon destroyed. as-76631 knocked back. Imp. Light Cannon destroyed. Wheel destroyed. Cld. Ion Engine destroyed. Mni. Grenade Launcher destroyed. Destroyed Mni. Grenade Launcher. Destroyed Asb. Hover Unit. as-98686 destroyed. as-97933 destroyed. Map ----- +----------------------------------------------------+ | ?????????######## ## ## ##?????????????????? | | ??????#??# ### ## ** #?????????????????? | | ??????# ?# ###### """ #?????????????????? | | ####### ## "" ===""" ##?????????????????? | | $ """ ### ##!"" ##??????????????????? | | ?? """ ###%## ###?????????????????? | | ????###### #?# ??????????? | | ??????##### ####?##### ## ????????? | | ??????# #???????################## ?????????? | | ??????# ### #???????????????????????????????????? | | ??????# #?# #???????????????????????????????????? | | ??????# #?# #???????????????????????????????????? | | ####### #?# #???????????????????????????????????? | | #?# #???????????????????????????????????? | | ## ######## #???####????????????????????????????? | | ?# #????## !##?## ##???????????????????????????? | | ?# ###### ! ### ##??????????????????????????? | | ?# = ## #??????????????????????????? | | ?# ###### #??????????????????????????? | | ?# #????### ##?????????????????????????? | | ?# #??????## ######????????????????????? | | ?# #????????##= ## ###??????????????????? | | ?# #?????????# #??????????????????? | | ?# #?????????# a #??????????????????? | | ?# ????????????# * % %a #??????????????????? | | ?###????????????##% @ #??????????????????? | | ????????????????# = a ##??????????????????? | | ????????????????# ## #???????????????????? | | ????????????????## ########???????????????????? | | ?????????????????# ##??????????????????????????? | | ?????????????????# #???????????????????????????? | | ????????????????# #???????????????????????????? | | ????????????????# ???????????????????????????? | | ????????????????# % #??????????????????????????? | | ??????????????## #?????###??????????????????? | | ??????????????# #????## ##?????????????????? | | ??????????????# # #???## [ #?????????????????? | | ??????????????#%## ###### =/##????????????????? | | ??????????????#%## * #????????????????? | | ??????????????# #####%### ########?????????? | | ??????????????# #???#!#?# #?????????? | | ??????????????# #???# #?## ####### #?????????? | | ??????????????# #???# #??# ##?????# #?????????? | | ??????????????#=#???# #??# ##??????# #?????????? | | ??????????????#%#???# #??# #???????# #?????????? | | ???????????????=????# #??# #???????# #?????????? | | ???????????????=????# ??# #???????# #?????????? | | ???????????????%?????##??# #???????# #???####??? | | ???????????????*?????????# #######?# #??## ##?? | | ???????????????!?????????# #?# #??# #?? | +----------------------------------------------------+ Best States ------------- Heat Dissipation 28 Energy Generation 14 Energy Capacity 480 Matter Stores 300 Matter Capacity 300 Sight Range 16 Terrain Scan Density 10 Evasion (%) 55 Targeting Accuracy 8 Recoil Reduction 3 Item Schematics ----------------- None Robot Schematics ------------------ None Fabricated ------------ Nothing Repaired ---------- Nothing Alien Tech Used ----------------- None Achievements -------------- None Challenges ------------ None Game ------ Seed GuidedDecoyArticulator Manual? 0 Play Time 00:32:16 Cumulative 8.3 hours Start 2025.10.06 @ 21:03:17 End 2025.10.06 @ 21:36:49 Sessions 1 Manual Loads 0 Difficulty Rogue Special Mode None Game No. 13 Rogue 13 Adventurer 0 Explorer 0 Win Type - Total 0 Types 0/0/0/0/0/0/0/0/0/0 Lore% 2 Gallery% 10 Achievement% 11 Wizard Run 0 Options --------- Layout 1 ASCII 0 Keyboard 0 Movement Mouse Keybinds 0 Fullscreen 1 Font 24/Smallcaps Map View 50x35 Zoom Use 0% Tactical HUD 0 Map Filters NONE Filters NONE Steam 1 RUN: cb47d77d-8053-49aa-aea9-b0f1386dec3e